fUSD/lending_fUSD_20240602
["ID","MTS","AMOUNT","RATE_DAILY","PERIOD"]
[328405175,1717345361452,362.63307101,5e-05,2]
[328405176,1717345371057,1540.25185868,3.75e-05,2]
[328405177,1717345371077,874.42446186,3.75e-05,2]
[328405178,1717345381390,362.42784889,5e-05,2]
[328405179,1717345422357,2763.14768925,5e-05,2]
[328405180,1717345422380,4000.0,5e-05,2]
[328405181,1717345422401,4000.0,5e-05,2]
[328405182,1717345422423,4000.0,5e-05,2]
[328405183,1717345422445,4000.0,5e-05,2]
[328405184,1717345422466,4000.0,5e-05,2]
[328405185,1717345422488,4000.0,5e-05,2]
[328405186,1717345422509,4000.0,5e-05,2]
[328405187,1717345422533,3812.18770075,5e-05,2]
[328405189,1717345466465,187.81229925,5e-05,2]
[328405190,1717345466486,4000.0,5e-05,2]
[328405191,1717345466507,4000.0,5e-05,2]
[328405192,1717345466529,4000.0,5e-05,2]
[328405193,1717345466552,4000.0,5e-05,2]
[328405194,1717345466573,3812.18770075,5e-05,2]
[328405195,1717345486594,187.81229925,5e-05,2]
[328405196,1717345486619,12036.4953046,5e-05,2]
[328405197,1717345522381,18596.43136225,5e-05,2]
[328405202,1717345802924,150.0,5e-05,2]
[328405203,1717345803147,263.42722589,5e-05,2]
[328405228,1717345831942,-481.38899408,0.00011631,2]
[328405229,1717345831952,-107.54642972,0.00011632,2]
[328405230,1717345831964,-1101.00994531,0.00011632,2]
[328405231,1717345832011,-1888.56547638,0.00011632,2]
[328405232,1717345832021,-403.6747044,0.0001164,2]
[328405233,1717345832030,-333.76597139,0.00011641,2]
[328405234,1717345832040,-200.0,0.00011642,2]
[328405235,1717345832049,-751.9104142,0.00015,2]
[328405236,1717345832059,-150.0,0.00015899,2]
[328405237,1717345832069,-150.0,0.00015899,2]
[328405238,1717345832078,-207.72033862,0.000159,2]
[328405239,1717345832139,-2374.27966138,0.000159,2]
[328405240,1717345832148,-671.0,0.000159,2]
[328405241,1717345832158,-210.0,0.00017489,2]
[328405242,1717345832168,-7718.04,0.00017534,2]
[328405243,1717345832177,-3888.23499441,0.00019451,2]
[328405244,1717345832186,-674.258,0.0001974,2]
[328405245,1717345832194,-634.94381214,0.0002,2]
[328405246,1717345832203,-863.57303464,0.0002,2]
[328405247,1717345832212,-6253.29174589,0.00021999,2]
[328405248,1717345832221,-5582.0428524,0.00022,2]
[328405249,1717345832232,-3436.09101449,0.00022,2]
[328405250,1717345832241,-789.37013607,0.00022,2]
[328405251,1717345832250,-160.47,0.00024384,2]
[328405252,1717345832259,-379.71,0.00024533,2]
[328405253,1717345832268,-2042.569349,0.000249,2]
[328405254,1717345832279,-670.67,0.000249,2]
[328405255,1717345832342,-2009.007,0.000249,2]
[328405273,1717345832898,-2064.39793182,0.000249,2]
[328405274,1717345832908,-1250.0,0.00025,2]
[328405275,1717345832917,-325.60601034,0.00025,2]
[328405276,1717345832926,-928.90688563,0.00025,2]
[328405277,1717345832936,-325.53303523,0.00025595,2]
[328405278,1717345832945,-139.74056897,0.00025598,2]
[328405297,1717345837882,-625.63943103,0.00025598,2]
[328405300,1717345837891,-250.0,0.00026152,2]
[328405302,1717345837901,-732.62,0.00026206,2]
[328405304,1717345837911,-250.0,0.00026222,2]
[328405306,1717345837920,-1745.81738146,0.00026251,2]
[328405307,1717345837930,-1000.0,0.00026312,2]
[328405309,1717345837939,-2988.92318751,0.00026327,2]
[328405313,1717345838069,-13766.85096036,0.00026327,2]
[328405314,1717345838080,-1172.76967418,0.00026327,2]
[328405315,1717345838096,-5971.45617795,0.00026327,2]
[328405316,1717345838107,-250.0,0.00026372,2]
[328405317,1717345838118,-168.7,0.000264,2]
[328405318,1717345838127,-181.73,0.00026538,2]
[328405319,1717345838136,-181.73,0.0002661,2]
[328405320,1717345838145,-181.73,0.00026683,2]
[328405321,1717345838155,-181.73,0.00026756,2]
[328405322,1717345838165,-379.71,0.00026797,2]
[328405323,1717345838175,-181.73,0.00026829,2]
[328405324,1717345838185,-181.73,0.00026902,2]
[328405325,1717345838195,-176.95,0.00026905,2]
[328405326,1717345838204,-181.73,0.00026974,2]
[328405327,1717345838214,-1300.0,0.00027,2]
[328405328,1717345838223,-150.0,0.00027,2]
[328405329,1717345838232,-181.73,0.00027047,2]
[328405330,1717345838242,-181.73,0.0002712,2]
[328405331,1717345838251,-181.73,0.00027193,2]
[328405332,1717345838261,-319.49,0.00027262,2]
[328405333,1717345838271,-181.73,0.00027266,2]
[328405334,1717345838280,-436.85825085,0.00027319,2]
[328405335,1717345838290,-181.73,0.00027338,2]
[328405336,1717345838299,-806.82910337,0.0002739,2]
[328405337,1717345838309,-150.0,0.00027397,2]
[328405338,1717345838318,-181.73,0.00027411,2]
[328405339,1717345838328,-181.73,0.00027484,2]
[328405340,1717345838337,-181.73,0.00027557,2]
[328405341,1717345838347,-181.73,0.00027629,2]
[328405342,1717345838356,-181.73,0.00027702,2]
[328405343,1717345838365,-181.73,0.00027775,2]
[328405344,1717345838375,-181.73,0.00027848,2]
[328405345,1717345838383,-181.73,0.00027921,2]
[328405346,1717345838393,-8916.99460983,0.00028,2]
[328405347,1717345838402,-200.0,0.00028,2]
[328405348,1717345838412,-150.0,0.00028118,2]
[328405349,1717345838421,-180.0,0.00028139,2]
[328405350,1717345838430,-765.38,0.00028338,2]
[328405352,1717345838439,-335.03,0.00028428,2]
[328405354,1717345838448,-150.0,0.00028839,2]
[328405356,1717345838457,-1350.0,0.00029,2]
[328405358,1717345838466,-4163.8478063,0.00029,2]
[328405360,1717345838476,-2053.44124277,0.00029,2]
[328405362,1717345838485,-507.20044859,0.00029,2]
[328405364,1717345838494,-379.71,0.00029061,2]
[328405366,1717345838503,-327.56559743,0.000295,3]
[328405368,1717345838512,-10273.805635,0.000295,2]
[328405370,1717345838522,-150.0,0.0002956,2]
[328405372,1717345838531,-1000.0,0.00029601,2]
[328405374,1717345838549,-15410.708453,0.000298,2]
[328405376,1717345838558,-2009.24235392,0.000299,2]
[328405378,1717345838567,-763.30101419,0.000299,2]
[328405380,1717345838578,-1128.3910726,0.000299,2]
[328405382,1717345838587,-20000.0,0.0003,8]
[328405384,1717345838596,-20547.61127,0.0003,2]
[328405386,1717345838605,-200.0,0.0003,2]
[328405387,1717345838617,-200.0,0.0003,2]
[328405390,1717345838626,-200.0,0.0003,2]
[328405391,1717345838636,-5702.70709465,0.00030099,2]
[328405393,1717345838645,-2500.0,0.000301,2]
[328405395,1717345838654,-3505.82768047,0.00030184,4]
[328405397,1717345838663,-338.22604802,0.00030199,2]
[328405399,1717345838672,-231.09343821,0.00030199,2]
[328405401,1717345838682,-25684.514088,0.000302,2]
[328405403,1717345838691,-1128.39107259,0.00030267,15]
[328405405,1717345838700,-763.30101419,0.00030267,15]
[328405407,1717345838710,-150.0,0.00030281,2]
[328405410,1717345838719,-162.98098978,0.000304,2]
[328405412,1717345838729,-162.98098974,0.0003045,2]
[328405413,1717345838738,-7500.0,0.00030498,2]
[328405415,1717345838748,-4436.21362224,0.00030498,4]
[328405418,1717345838757,-282.3268814,0.00030498,4]
[328405420,1717345838767,-155.0,0.00030498,4]
[328405421,1717345838776,-791.11871029,0.00030498,4]
[328405423,1717345838786,-949.10416499,0.00030498,4]
[328405425,1717345838795,-156.15744793,0.00030498,4]
[328405428,1717345838805,-263.31816846,0.00030498,4]
[328405430,1717345838817,-200.22622272,0.00030498,4]
[328405432,1717345838827,-5488.23697739,0.00030498,4]
[328405434,1717345838836,-1119.7334628,0.00030498,2]
[328405436,1717345838846,-319.59101359,0.00030498,2]
[328405438,1717345838855,-385.11175698,0.00030499,4]
[328405440,1717345838865,-714.03559765,0.00030499,15]
[328405442,1717345838874,-1583.29682908,0.00030499,4]
[328405444,1717345838886,-18285.10376832,0.000305,2]
[328405446,1717345838898,-303.44,0.000305,2]
[328405583,1717345847286,1728.96439159,3.75e-05,2]
[328405584,1717345886428,1718.4770421,5e-05,2]
[328405585,1717345888744,139.13134042,5e-05,2]
[328405586,1717345888765,4000.0,5e-05,2]
[328405587,1717345888786,3608.33147843,5e-05,2]
[328405588,1717345890086,391.66852157,5e-05,2]
[328405589,1717345890107,321.48912844,5e-05,2]
[328405593,1717345968713,451.80313691,5e-05,2]
[328405595,1717346028456,306.3577594,0.00031,30]
[328405596,1717346037079,3226.70773465,9e-05,2]
[328405597,1717346037101,4000.0,9e-05,2]
[328405598,1717346037123,2665.49547572,9e-05,2]
[328405600,1717346053440,259.1,0.00011,2]
[328405602,1717346072060,1075.40452428,6.94e-05,2]
[328405603,1717346072081,4000.0,6.94e-05,2]
[328405604,1717346072102,4000.0,6.94e-05,2]
[328405605,1717346072125,4000.0,6.94e-05,2]
[328405606,1717346072147,4000.0,6.94e-05,2]
[328405607,1717346072168,827.99566179,6.94e-05,2]
[328405609,1717346108962,3172.00433821,6.94e-05,2]
[328405610,1717346108985,4000.0,6.94e-05,2]
[328405611,1717346109007,4000.0,6.94e-05,2]
[328405612,1717346109030,4000.0,6.94e-05,2]
[328405613,1717346109053,4000.0,6.94e-05,2]
[328405614,1717346109077,4000.0,6.94e-05,2]
[328405615,1717346109102,1823.02544911,6.94e-05,2]
[328405616,1717346151929,2176.97455089,0.00011594,2]
[328405617,1717346151951,4000.0,0.00011594,2]
[328405618,1717346151971,4000.0,0.00011594,2]
[328405619,1717346151991,4000.0,0.00011594,2]
[328405620,1717346152012,4000.0,0.00011594,2]
[328405621,1717346152033,530.77493208,0.00011594,2]
[328405622,1717346160942,3469.22506792,6.94e-05,2]
[328405623,1717346160964,4000.0,6.94e-05,2]
[328405624,1717346160987,4000.0,6.94e-05,2]
[328405625,1717346161010,4000.0,6.94e-05,2]
[328405626,1717346161037,9108.47972138,6.94e-05,2]
[328405627,1717346219791,-333.76597139,0.0001159,2]
[328405628,1717346219813,-806.56403504,0.00011591,2]
[328405629,1717346219835,-2859.66999357,0.0001169,2]
[328405630,1717346238662,-506.02810357,0.00011588,2]
[328405631,1717346238684,-855.53855384,0.00011589,2]
[328405632,1717346238708,-2638.43334259,0.0001159,2]
[328405633,1717346239178,-408.01639975,0.0001159,2]
[328405634,1717346239201,-237.45185784,0.0001169,2]
[328405635,1717346239222,-157.37297207,0.00011799,2]
[328405636,1717346239243,-2461.29111359,0.000118,2]
[328405637,1717346239264,-735.86765675,0.00012,2]
[328405638,1717346239679,-672.7210461,0.00012,2]
[328405639,1717346239702,-1298.39020343,0.00013298,2]
[328405640,1717346239724,-253.3183729,0.00013858,2]
[328405641,1717346239747,-239.24604195,0.000139,2]
[328405642,1717346239768,-1536.32433562,0.000139,2]
[328405643,1717346240855,-4000.0,0.000139,2]
[328405644,1717346241744,-1807.4395692,0.000139,2]
[328405645,1717346241765,-364.96719133,0.00013998,2]
[328405646,1717346241787,-1827.59323947,0.00013998,2]
[328405664,1717346502885,303.440005,0.000308,30]
[328405666,1717346897980,157.67182435,0.00031,30]
[328405677,1717346954196,-489.90847161,0.00010311,2]
[328405678,1717346954218,-162.29,0.00010312,2]
[328405679,1717346954238,-644.90990868,0.0001134,2]
[328405680,1717346954258,-333.76597139,0.00011341,2]
[328405681,1717346954280,-3046.44974234,0.00011341,2]
[328405682,1717346954301,-165.56535883,0.00011342,2]
[328405683,1717346954326,-4438.46997973,0.00011439,2]
[328405684,1717346954349,-150.0,0.00011443,2]
[328405685,1717346954370,-150.0,0.00011443,2]
[328405686,1717346954389,-223.0,0.00011446,2]
[328405687,1717346954410,-150.0,0.00011452,2]
[328405688,1717346954590,-220.6056,0.00011491,2]
[328405689,1717346954611,-1725.82,0.00011491,2]
[328405690,1717346954633,-49.75195011,0.00012307,2]
[328405691,1717346954661,-112.08804989,0.00012307,2]
[328405692,1717346954685,-205.96156286,0.000134,4]
[328405698,1717346974146,-2288.26118843,0.0001031,2]
[328405711,1717347032214,-2366.03746575,0.00013399,2]
[328405712,1717347032223,-489.90847161,0.00013399,2]
[328405713,1717347032232,-644.90990868,0.00013399,2]
[328405714,1717347032242,-180.49588351,0.000134,2]
[328405715,1717347032251,-394.03843714,0.000134,4]
[328405716,1717347032260,-289.59,0.00013434,2]
[328405717,1717347032270,-311.71,0.00013484,2]
[328405718,1717347032279,-508.34,0.00013484,2]
[328405719,1717347032288,-1200.0,0.000135,4]
[328405720,1717347032298,-250.0,0.00013535,2]
[328405721,1717347032307,-627.99,0.00013585,2]
[328405722,1717347032316,-4115.08,0.00013585,2]
[328405723,1717347032325,-1800.0,0.000136,4]
[328405724,1717347032335,-2400.0,0.000137,5]
[328405725,1717347032344,-3000.0,0.000138,5]
[328405726,1717347032354,-499.99,0.000138,2]
[328405727,1717347032364,-4729.49085994,0.000139,2]
[328405728,1717347032374,-600.0,0.000139,5]
[328405729,1717347032384,-1503.58198584,0.000139,2]
[328405730,1717347032393,-836.35587079,0.000139,2]
[328405731,1717347032402,-236.51731312,0.000139,2]
[328405732,1717347032412,-319.93214216,0.000139,2]
[328405733,1717347032421,-164.68221473,0.000139,2]
[328405734,1717347032430,-1758.40572097,0.000139,2]
[328405735,1717347032440,-253.98080855,0.000139,2]
[328405736,1717347032449,-159.4973613,0.000139,2]
[328405737,1717347032459,-583.69889785,0.00013988,2]
[328405738,1717347032468,-200.28869414,0.0001399,2]
[328405739,1717347032477,-200.28869414,0.0001399,2]
[328405740,1717347032486,-200.28869414,0.0001399,2]
[328405741,1717347032496,-151.19,0.0001399,2]
[328405742,1717347032505,-151.19,0.0001399,2]
[328405743,1717347032515,-151.19,0.0001399,2]
[328405744,1717347032525,-151.19,0.0001399,2]
[328405745,1717347032535,-151.19,0.0001399,2]
[328405746,1717347032546,-151.19,0.0001399,2]
[328405747,1717347032556,-151.19,0.0001399,2]
[328405748,1717347032565,-151.19,0.0001399,2]
[328405749,1717347032575,-151.19,0.0001399,2]
[328405750,1717347032586,-151.19,0.0001399,2]
[328405751,1717347032595,-151.19,0.0001399,2]
[328405752,1717347032604,-151.19,0.0001399,2]
[328405753,1717347032614,-151.19,0.0001399,2]
[328405754,1717347032623,-151.19,0.0001399,2]
[328405755,1717347032633,-151.19,0.0001399,2]
[328405756,1717347032642,-151.19,0.0001399,2]
[328405757,1717347032651,-151.19,0.0001399,2]
[328405758,1717347032662,-151.19,0.0001399,2]
[328405759,1717347032671,-151.19,0.0001399,2]
[328405760,1717347032680,-151.19,0.0001399,2]
[328405761,1717347032689,-990.24397322,0.00013998,2]
[328405762,1717347032698,-21.60914608,0.00013998,2]
[328405763,1717347032710,-290.64231385,0.00013998,2]
[328405764,1717347032720,-411.63118615,0.00013998,2]
[328405765,1717347032732,-9.73413993,0.00013998,2]
[328405766,1717347032741,-414.37265856,0.00013998,2]
[328405767,1717347032750,-560.71342862,0.00013998,2]
[328405768,1717347032759,-293.46775305,0.00013998,2]
[328405769,1717347032775,-523.92588046,0.00013998,2]
[328405770,1717347032785,-144.24161954,0.00013998,2]
[328405771,1717347032796,-2948.87405268,0.00013998,2]
[328405772,1717347032806,-1149.23312844,0.00013998,2]
[328405773,1717347032818,-2850.76687156,0.00013998,2]
[328405774,1717347032827,-683.4398292,0.00013998,2]
[328405775,1717347032841,-28.2501708,0.00013998,2]
[328405776,1717347032851,-737.52538569,0.00013998,2]
[328405777,1717347032860,-1606.53002027,0.00013998,2]
[328405778,1717347032870,-531.56708747,0.00013998,2]
[328405779,1717347032879,-333.26912791,0.00013998,2]
[328405780,1717347032889,-155.31359125,0.00013999,2]
[328405781,1717347032898,-12021.72643229,0.00013999,2]
[328405782,1717347032907,-44093.66969581,0.00014,2]
[328405783,1717347032919,-2887.28084529,0.00014,2]
[328405815,1717347033413,-366.99254869,0.00014,2]
[328405816,1717347033424,-726.25927746,0.00014,2]
[328405826,1717347038313,-116154.45698554,0.00014,2]
[328405844,1717347041034,-635.57909261,0.00014,2]
[328405845,1717347042074,-54343.33671955,0.00014,2]
[328405846,1717347042086,-1053.98522685,0.00014,2]
[328405901,1717347043731,-6693.477592,0.00014,2]
[328405902,1717347043816,-451.80313691,0.00014,2]
[328405913,1717347046356,-32592.01435,0.00014,2]
[328405914,1717347046444,-668.58558165,0.00014,2]
[328405915,1717347046456,-6545.359872,0.00014,2]
[328405916,1717347046532,-562030.48660378,0.00014,2]
[328405917,1717347046544,-4072.03949952,0.00014,2]
[328405918,1717347046624,-10479.43196172,0.00014,2]
[328405919,1717347046638,-759.1952246,0.00014,2]
[328405920,1717347046703,-978479.15589412,0.00014,2]
[328405950,1717347099842,-180.49588351,0.0001031,2]
[328405951,1717347099869,-1547.59,0.0001031,2]
[328405954,1717347139259,-489.90847161,0.00013899,2]
[328405955,1717347139279,-2366.03746575,0.00013899,2]
[328405956,1717347139301,-4895.84260322,0.000139,2]
[328405957,1717347139323,-290.94700594,0.000139,2]
[328405958,1717347139344,-319.93796241,0.000139,2]
[328405959,1717347139365,-157.67820874,0.000139,2]
[328405960,1717347139387,-1172.27048064,0.000139,2]
[328405961,1717347139409,-162.93313796,0.00013998,2]
[328405962,1717347139429,-210.64268981,0.00013998,2]
[328405963,1717347139450,-155.0,0.00013998,2]
[328405964,1717347139472,-642.86744231,0.00013999,2]
[328405965,1717347139494,-333.64176052,0.00013999,2]
[328405966,1717347139518,-37074.20688758,0.00014,2]
[328405967,1717347566008,-2366.03746575,0.00010208,2]
[328405968,1717347566033,-1462.06657489,0.00010209,2]
[328405969,1717347582112,171.89595936,0.00010207,2]
[328405970,1717347582327,804.10762439,0.00010207,2]
[328405971,1717347608692,3195.89237561,0.00010209,2]
[328405972,1717347608714,3086.0,0.00010209,2]
[328405973,1717347645391,300.0,7.657e-05,2]
[328405976,1717348161177,-1979.15302859,0.00010208,2]
[328405977,1717348164154,-386.88443716,0.00010208,2]
[328405978,1717348164175,-4830.00330895,0.00010209,2]
[328405979,1717348164196,-180.49588351,0.00010209,2]
[328405980,1717348164215,-3535.7631842,0.0001021,2]
[328405981,1717348171116,-10933.5673158,0.0001021,2]
[328405982,1717348171138,-95.24307591,0.00010557,2]
[328405998,1717348231774,-80.20692409,0.00010557,2]
[328405999,1717348231784,-180.74422106,0.00010557,2]
[328406000,1717348231793,-493.13,0.00013001,2]
[328406001,1717348231802,-1094.86,0.00013102,2]
[328406002,1717348231811,-1027.37,0.00013149,2]
[328406003,1717348231821,-250.0,0.00013196,2]
[328406004,1717348231830,-172.95,0.00013699,2]
[328406005,1717348231840,-252.89515552,0.00013858,2]
[328406006,1717348231849,-1342.08500561,0.000139,2]
[328406007,1717348231858,-2937.12318765,0.000139,2]
[328406064,1717348240447,-1398.24343398,0.000139,2]
[328406065,1717348240458,-159.49736128,0.000139,2]
[328406066,1717348240467,-319.93796239,0.000139,2]
[328406067,1717348240477,-1260.91124235,0.000139,2]
[328406149,1717348245862,-321.04751768,0.000139,2]
[328406151,1717348732555,-333.76597139,9.98e-05,2]
[328406152,1717348732577,-2366.03746575,9.981e-05,2]
[328406153,1717348732601,-150.0,9.982e-05,2]
[328406154,1717348732623,-161.84,9.985e-05,2]
[328406155,1717348732646,-688.35656286,0.00010454,2]
[328406156,1717349348600,-1715.4159,9.819e-05,2]
[328406157,1717349348623,-2366.03746575,9.869e-05,2]
[328406158,1717349348646,-19533.10118789,9.921e-05,2]
[328406159,1717349348667,-763.0,9.923e-05,2]
[328406160,1717349348690,-549.58,9.924e-05,2]
[328406161,1717349348711,-200.54023639,0.00010402,2]
[328406162,1717349348732,-1660.2996,0.00010456,2]
[328406163,1717349348752,-1104.77,0.00011796,2]
[328406164,1717349348772,-215.56,0.00011809,2]
[328406165,1717349348792,-150.0,0.00011833,2]
[328406166,1717349348815,-5585.77,0.00011834,2]
[328406167,1717349348837,-1000.0,0.00012,2]
[328406168,1717349348860,-7938.68,0.00012,2]
[328406169,1717349348880,-93914.55,0.00012,2]
[328406170,1717349348914,-1953.07,0.00012078,2]
[328406171,1717349348938,-499.99,0.00012078,2]
[328406172,1717349348962,-210.2,0.00012081,2]
[328406173,1717349348983,-23900.0,0.00012157,2]
[328406174,1717349349006,-1000.0,0.00012166,2]
[328406175,1717349349028,-549.58,0.00012188,2]
[328406176,1717349349051,-3750.35,0.00012288,2]
[328406177,1717349349074,-1857.12,0.00012288,2]
[328406178,1717349349096,-199.76,0.00012293,2]
[328406179,1717349349117,-250.0,0.00012297,2]
[328406180,1717349349139,-793.86,0.00012347,2]
[328406181,1717349349160,-879.73,0.00012347,2]
[328406182,1717349349182,-250.0,0.0001235,2]
[328406183,1717349349203,-233.29,0.0001235,2]
[328406184,1717349349224,-319.3,0.0001235,2]
[328406185,1717349349250,-183.54,0.0001238,2]
[328406186,1717349349271,-183.54,0.00012414,2]
[328406187,1717349349294,-500.0,0.0001243,2]
[328406188,1717349349318,-183.54,0.00012448,2]
[328406189,1717349349342,-183.54,0.00012482,2]
[328406190,1717349349366,-183.54,0.00012516,2]
[328406191,1717349349390,-183.54,0.0001255,2]
[328406192,1717349349412,-183.54,0.00012584,2]
[328406193,1717349349435,-183.54,0.00012618,2]
[328406194,1717349349460,-183.54,0.00012652,2]
[328406195,1717349349482,-183.54,0.00012686,2]
[328406196,1717349349504,-183.54,0.0001272,2]
[328406197,1717349349526,-183.54,0.00012754,2]
[328406198,1717349349548,-183.54,0.00012788,2]
[328406199,1717349349570,-183.54,0.00012822,2]
[328406200,1717349349592,-183.54,0.00012856,2]
[328406201,1717349349619,-1355.27794794,0.00012865,2]
[328406205,1717349433611,-250.0,0.00012791,2]
[328406206,1717349433620,-6.269,0.0001289,2]
[328406207,1717349433928,-177.271,0.0001289,2]
[328406208,1717349433938,-848.18,0.00012894,2]
[328406209,1717349433951,-183.54,0.00012923,2]
[328406210,1717349433960,-150.0,0.00012928,2]
[328406211,1717349433970,-150.0,0.00012928,2]
[328406212,1717349433980,-333.51754965,0.00012931,2]
[328406213,1717349433990,-305.37480479,0.00012932,2]
[328406214,1717349433999,-1111.39647778,0.00012932,2]
[328406215,1717349434009,-4278.20905101,0.00012932,2]
[328406216,1717349434019,-5630.75,0.00012932,2]
[328406217,1717349434029,-5020.83,0.00012932,2]
[328406218,1717349434039,-150.99,0.00012957,2]
[328406219,1717349434048,-183.54,0.00012957,2]
[328406220,1717349434058,-183.54,0.00012991,2]
[328406221,1717349434068,-1000.0,0.00013,2]
[328406222,1717349434077,-183.54,0.00013025,2]
[328406223,1717349434087,-159.6,0.00013194,2]
[328406224,1717349434097,-2366.03746575,0.00013509,2]
[328406225,1717349434107,-412.75360643,0.0001351,2]
[328406226,1717349434117,-1000.0,0.00013687,2]
[328406227,1717349434127,-166.84,0.00013699,2]
[328406228,1717349434136,-192.62,0.00013699,2]
[328406229,1717349434145,-152.09166539,0.000138,2]
[328406230,1717349434155,-8663.69469647,0.00013829,2]
[328406231,1717349434164,-209.56316016,0.00013898,2]
[328406232,1717349434174,-1979.14657313,0.00013899,2]
[328406233,1717349434183,-164.68221473,0.000139,2]
[328406234,1717349434192,-44703.10366823,0.000139,2]
[328406235,1717349434204,-2000.0,0.000139,2]
[328406236,1717349434214,-200.0,0.000139,2]
[328406238,1717349434223,-3974.0860698,0.000139,2]
[328406240,1717349434233,-296.46096451,0.000139,2]
[328406243,1717349434244,-833.36689,0.000139,2]
[328406246,1717349434255,-2106.13016943,0.000139,2]
[328406249,1717349434265,-169.32053904,0.000139,2]
[328406252,1717349434274,-320.21102625,0.000139,2]
[328406255,1717349434283,-2000.0,0.000139,2]
[328406258,1717349434293,-781.51365376,0.000139,2]
[328406261,1717349434302,-200.0,0.000139,2]
[328406263,1717349434311,-3777.0834627,0.00013989,2]
[328406265,1717349434322,-674.18075513,0.0001399,2]
[328406267,1717349434332,-674.18075513,0.0001399,2]
[328406269,1717349434341,-674.18075513,0.0001399,2]
[328406271,1717349434351,-151.83,0.0001399,2]
[328406273,1717349434360,-151.83,0.0001399,2]
[328406275,1717349434370,-151.83,0.0001399,2]
[328406276,1717349434379,-151.83,0.0001399,2]
[328406278,1717349434389,-151.83,0.0001399,2]
[328406281,1717349434399,-155.0,0.00013998,2]
[328406283,1717349434408,-268.20766282,0.00013998,2]
[328406284,1717349434418,-306.94,0.00013998,2]
[328406287,1717349434428,-155.30710395,0.00013998,2]
[328406288,1717349434437,-325.32001855,0.00013998,2]
[328406290,1717349434449,-292.91016769,0.00013999,2]
[328406292,1717349434458,-34501.16104923,0.00014,2]
[328406295,1717349434471,-93709.32129289,0.00014,2]
[328406297,1717349434483,-7226.19500864,0.00014,2]
[328406332,1717349437812,-2360.66576944,0.00014,2]
[328406333,1717349437875,-646.08432,0.00014,2]
[328406334,1717349438087,-0.00403043,0.00014,2]
[328406335,1717349438099,-44715.6526735,0.00014,2]
[328406350,1717349441854,-578.51876625,0.000138,2]
[328406351,1717349441866,-271.01559691,0.000138,2]
[328406352,1717349441875,-369.08940309,0.000139,2]
[328406361,1717349444195,-159.49736128,0.000139,2]
[328406362,1717349444206,-480.44496007,0.000139,2]
[328406363,1717349444215,-6160.05767865,0.00014,2]
[328406374,1717349446019,-613.71645987,0.00013999,2]
[328406657,1717349672821,3215.5799,6.94e-05,2]
[328406664,1717349954286,15014.75043288,0.0003,30]
[328406665,1717350065895,-407.335633,9.25e-05,2]
[328406666,1717350065921,-316.664367,9.297e-05,2]
[328406667,1717350143193,4000.0,0.00031,30]
[328406668,1717350455657,302.78425401,0.00031,30]
[328406673,1717350557175,-3927.57815666,9.281e-05,2]
[328406674,1717350567192,-4438.46997973,9.279e-05,2]
[328406675,1717350567214,-2366.03746575,9.279e-05,2]
[328406676,1717350567236,-941.27352621,9.28e-05,2]
[328406677,1717350567258,-31513.47617016,9.281e-05,2]
[328406678,1717350567280,-3046.44974234,9.281e-05,2]
[328406679,1717350567302,-3749.0,9.282e-05,2]
[328406680,1717350567326,-2333.70305782,9.282e-05,2]
[328406681,1717350567350,-489.90847161,9.283e-05,2]
[328406682,1717350567372,-333.76597139,9.284e-05,2]
[328406683,1717350567393,-12837.395501,9.285e-05,2]
[328406684,1717350567418,-150.0,9.29e-05,2]
[328406685,1717350567440,-8804.82211399,9.293e-05,2]